[Event "*** Titled Tuesday 3|2 Blitz"]
[Site "Chess.com"]
[Date "2016.05.03"]
[Round "1"]
[White "Keranke"]
[Black "Quinten94"]
[Result "1-0"]
[WhiteElo "2608"]
[BlackElo "2292"]
[TimeControl "180+2"]
[EndTime "11:09:10 PDT"]
[Termination "Keranke won by resignation"]

1. d4 {[%clk 0:03:01.9]} 1... d5 {[%clk 0:02:49.7]} 2. c4 {[%clk 0:03:02.6]}
2... c6 {[%clk 0:02:50.6]} 3. Nc3 {[%clk 0:03:02.5]} 3... dxc4 {[%clk
0:02:51.5]} 4. a4 {[%clk 0:03:02.5]} 4... e5 {[%clk 0:02:51.9]} 5. Nf3 {[%clk
0:03:03.9]} 5... exd4 {[%clk 0:02:52.1]} 6. Nxd4 {[%clk 0:03:05.8]} 6... Bc5
{[%clk 0:02:53.6]} 7. Be3 {[%clk 0:03:07]} 7... Nd7 {[%clk 0:02:45.7]} 8. Nf5
{[%clk 0:02:59.5]} 8... Bxe3 {[%clk 0:02:45.5]} 9. fxe3 {[%clk 0:02:31.8]} 9...
g6 {[%clk 0:02:34.4]} 10. Nd6+ {[%clk 0:02:32.1]} 10... Kf8 {[%clk 0:02:26.5]}
11. Nxc4 {[%clk 0:02:26.9]} 11... Kg7 {[%clk 0:02:22.1]} 12. g3 {[%clk 0:02:28]}
12... Ngf6 {[%clk 0:02:20.2]} 13. Bg2 {[%clk 0:02:26.8]} 13... Nc5 {[%clk
0:02:21]} 14. b4 {[%clk 0:02:09.1]} 14... Qxd1+ {[%clk 0:02:16.5]} 15. Rxd1
{[%clk 0:02:11]} 15... Na6 {[%clk 0:02:16.5]} 16. b5 {[%clk 0:02:11]} 16... Nc5
{[%clk 0:02:12]} 17. bxc6 {[%clk 0:02:09.8]} 17... bxc6 {[%clk 0:02:12.5]} 18.
Bxc6 {[%clk 0:02:11.5]} 18... Rb8 {[%clk 0:02:13.7]} 19. O-O {[%clk 0:02:08.6]}
19... Be6 {[%clk 0:02:13.9]} 20. Ne5 {[%clk 0:01:52.9]} 20... h5 {[%clk
0:02:06.3]} 21. Rf4 {[%clk 0:01:47.9]} 21... Rb3 {[%clk 0:02:02.6]} 22. Nb5
{[%clk 0:01:42.8]} 22... Rxe3 {[%clk 0:02:00.9]} 23. Nd3 {[%clk 0:01:24.2]}
23... Nxd3 {[%clk 0:01:42.7]} 24. exd3 {[%clk 0:01:26.1]} 24... Rd8 {[%clk
0:01:35.8]} 25. Nxa7 {[%clk 0:01:09.2]} 25... Rdxd3 {[%clk 0:01:18.4]} 26. Rxd3
{[%clk 0:01:11.1]} 26... Rxd3 {[%clk 0:01:19.3]} 27. a5 {[%clk 0:01:12.6]} 27...
Ng4 {[%clk 0:01:17]} 28. a6 {[%clk 0:00:56.4]} 28... Ne5 {[%clk 0:01:02.7]} 29.
Bb5 {[%clk 0:00:50.9]} 29... Rb3 {[%clk 0:00:49]} 30. Ba4 {[%clk 0:00:41.1]}
30... Rb6 {[%clk 0:00:36.8]} 31. Bb5 {[%clk 0:00:42.2]} 31... Bd7 {[%clk
0:00:37.7]} 32. Ra4 {[%clk 0:00:23.7]} 32... Be6 {[%clk 0:00:13.9]} 33. Be2
{[%clk 0:00:21.4]} 33... f5 {[%clk 0:00:14.6]} 34. Nb5 {[%clk 0:00:21.4]} 34...
Bd5 {[%clk 0:00:15.6]} 35. Nc7 {[%clk 0:00:20.4]} 35... Bc6 {[%clk 0:00:13.9]}
36. a7 {[%clk 0:00:19.5]} 36... Rb7 {[%clk 0:00:14.8]} 37. a8=Q {[%clk
0:00:20.1]} 37... Rb1+ {[%clk 0:00:15.7]} 38. Kf2 {[%clk 0:00:21.6]} 38... Bxa8
{[%clk 0:00:16.9]} 39. Rxa8 {[%clk 0:00:23.3]} 39... Kf6 {[%clk 0:00:17.6]} 40.
Nd5+ {[%clk 0:00:24.4]} 40... Kg5 {[%clk 0:00:17.6]} 41. h4+ {[%clk 0:00:21.3]}
41... Kh6 {[%clk 0:00:18.9]} 42. Ra7 {[%clk 0:00:20.4]} 42... g5 {[%clk
0:00:18.2]} 43. Ra6+ {[%clk 0:00:20.7]} 43... Kg7 {[%clk 0:00:19.4]} 44. hxg5
{[%clk 0:00:21.8]} 44... Nf7 {[%clk 0:00:18.6]} 45. Ra7 {[%clk 0:00:18.8]} 1-0

[Event "*** Titled Tuesday 3|2 Blitz"]
[Site "Chess.com"]
[Date "2016.05.03"]
[Round "1"]
[White "Zazuliak"]
[Black "AndrewMcStone"]
[Result "1/2-1/2"]
[WhiteElo "2364"]
[BlackElo "1960"]
[TimeControl "180+2"]
[EndTime "11:09:18 PDT"]
[Termination "Game drawn by agreement"]

1. d4 {[%clk 0:03:01.2]} 1... Nf6 {[%clk 0:02:58.3]} 2. c4 {[%clk 0:03:01.8]}
2... Nc6 {[%clk 0:02:57.5]} 3. Nf3 {[%clk 0:02:56]} 3... e6 {[%clk 0:02:57.8]}
4. Nc3 {[%clk 0:02:56.8]} 4... Bb4 {[%clk 0:02:58.3]} 5. Qc2 {[%clk 0:02:57.6]}
5... d6 {[%clk 0:02:50.2]} 6. Bd2 {[%clk 0:02:56]} 6... O-O {[%clk 0:02:44.7]}
7. a3 {[%clk 0:02:55]} 7... Bxc3 {[%clk 0:02:45.6]} 8. Bxc3 {[%clk 0:02:55.9]}
8... Qe7 {[%clk 0:02:43.2]} 9. e3 {[%clk 0:02:52]} 9... e5 {[%clk 0:02:43.7]}
10. dxe5 {[%clk 0:02:52.5]} 10... dxe5 {[%clk 0:02:19.1]} 11. Be2 {[%clk
0:02:53]} 11... Bg4 {[%clk 0:02:11]} 12. h3 {[%clk 0:02:50.1]} 12... Bh5 {[%clk
0:02:11.7]} 13. O-O {[%clk 0:02:48.9]} 13... a5 {[%clk 0:02:05.1]} 14. Rad1
{[%clk 0:02:39.3]} 14... a4 {[%clk 0:01:53.3]} 15. Nh4 {[%clk 0:02:18.3]} 15...
Bxe2 {[%clk 0:01:41.9]} 16. Qxe2 {[%clk 0:02:18.7]} 16... Ne4 {[%clk 0:01:42.9]}
17. Nf5 {[%clk 0:02:19.3]} 17... Qf6 {[%clk 0:01:32.4]} 18. Qg4 {[%clk
0:02:08.2]} 18... Nxc3 {[%clk 0:01:29.4]} 19. bxc3 {[%clk 0:02:08.7]} 19... Rad8
{[%clk 0:01:23.1]} 20. Rd5 {[%clk 0:02:05.5]} 20... Ne7 {[%clk 0:01:05.6]} 21.
Nxe7+ {[%clk 0:01:54.6]} 21... Qxe7 {[%clk 0:01:06.2]} 22. Ra1 {[%clk
0:01:37.1]} 22... c6 {[%clk 0:00:28.1]} 23. Rdd1 {[%clk 0:01:23.4]} 23... Qc5
{[%clk 0:00:20.3]} 24. Qe2 {[%clk 0:01:15.4]} 24... Rxd1+ {[%clk 0:00:15]} 25.
Qxd1 {[%clk 0:01:16]} 25... Qxc4 {[%clk 0:00:15.1]} 26. Rb1 {[%clk 0:01:16.6]}
26... b5 {[%clk 0:00:15.4]} 27. Qd2 {[%clk 0:01:16]} 27... e4 {[%clk 0:00:12.6]}
28. Rb4 {[%clk 0:01:16.2]} 28... Qd3 {[%clk 0:00:12.3]} 29. Qxd3 {[%clk
0:01:14.1]} 29... exd3 {[%clk 0:00:14.2]} 30. Rd4 {[%clk 0:01:16]} 30... c5
{[%clk 0:00:07.7]} 31. Rxd3 {[%clk 0:01:16.8]} 31... Rc8 {[%clk 0:00:06.9]} 32.
f4 {[%clk 0:01:16.4]} 32... Kf8 {[%clk 0:00:07.2]} 33. Kf2 {[%clk 0:01:17.1]}
33... Ke7 {[%clk 0:00:08.1]} 34. Ke2 {[%clk 0:01:17.9]} 34... f5 {[%clk
0:00:09.2]} 35. Rd5 {[%clk 0:01:18.2]} 35... Ke6 {[%clk 0:00:10.1]} 36. Re5+
{[%clk 0:01:19.3]} 36... Kf6 {[%clk 0:00:10.3]} 37. g4 {[%clk 0:01:20.2]} 37...
g6 {[%clk 0:00:11.3]} 38. Kf3 {[%clk 0:01:15.4]} 38... Rc7 {[%clk 0:00:06.9]}
39. Re8 {[%clk 0:01:14.4]} 39... Rd7 {[%clk 0:00:05.4]} 40. Rb8 {[%clk
0:01:14.2]} 40... Rd3 {[%clk 0:00:04.9]} 41. Rb7 {[%clk 0:01:12]} 41... Rxc3
{[%clk 0:00:04.6]} 42. Rxb5 {[%clk 0:01:12.3]} 42... Rxa3 {[%clk 0:00:05.5]} 43.
Rxc5 {[%clk 0:01:13.3]} 43... Ra1 {[%clk 0:00:05.1]} 44. g5+ {[%clk 0:01:12.7]}
44... Kf7 {[%clk 0:00:05.7]} 45. Rc7+ {[%clk 0:01:13.6]} 45... Kg8 {[%clk
0:00:06.4]} 46. Ra7 {[%clk 0:01:14.5]} 46... a3 {[%clk 0:00:07.6]} 47. h4 {[%clk
0:01:14.8]} 47... a2 {[%clk 0:00:08.7]} 48. Kg2 {[%clk 0:01:16]} 48... Kf8
{[%clk 0:00:07.3]} 49. Kh2 {[%clk 0:01:09.8]} 49... Kg8 {[%clk 0:00:08.5]} 50.
Ra3 {[%clk 0:01:08.8]} 50... Kf7 {[%clk 0:00:08.5]} 51. Kg2 {[%clk 0:01:09.7]}
51... Ke6 {[%clk 0:00:09.1]} 52. Ra5 {[%clk 0:01:10.6]} 52... Kd6 {[%clk
0:00:09.9]} 53. Ra8 {[%clk 0:01:02.2]} 1/2-1/2

[Event "*** Titled Tuesday 3|2 Blitz"]
[Site "Chess.com"]
[Date "2016.05.03"]
[Round "1"]
[White "Colombiano07"]
[Black "spectralsoul"]
[Result "0-1"]
[WhiteElo "2236"]
[BlackElo "2553"]
[TimeControl "180+2"]
[EndTime "11:09:22 PDT"]
[Termination "spectralsoul won on time"]

1. e4 {[%clk 0:02:46]} 1... c5 {[%clk 0:03:01.2]} 2. Nf3 {[%clk 0:02:45.8]} 2...
Nc6 {[%clk 0:03:02.2]} 3. Nc3 {[%clk 0:02:46.5]} 3... e6 {[%clk 0:03:01.2]} 4.
d4 {[%clk 0:02:46.2]} 4... cxd4 {[%clk 0:03:03.1]} 5. Nxd4 {[%clk 0:02:46.5]}
5... Qc7 {[%clk 0:03:04.1]} 6. Nxc6 {[%clk 0:02:42.8]} 6... bxc6 {[%clk
0:03:02]} 7. Bd3 {[%clk 0:02:44.1]} 7... Nf6 {[%clk 0:03:01.1]} 8. O-O {[%clk
0:02:44.7]} 8... Be7 {[%clk 0:02:54.3]} 9. Qf3 {[%clk 0:02:42.8]} 9... O-O
{[%clk 0:02:49.7]} 10. Bf4 {[%clk 0:02:34.3]} 10... d6 {[%clk 0:02:46.8]} 11. h3
{[%clk 0:02:23.6]} 11... e5 {[%clk 0:02:44.6]} 12. Be3 {[%clk 0:02:19.6]} 12...
Be6 {[%clk 0:02:43.6]} 13. b3 {[%clk 0:02:17.8]} 13... d5 {[%clk 0:02:40.8]} 14.
Bg5 {[%clk 0:02:10.3]} 14... Rfd8 {[%clk 0:02:37.4]} 15. Rfe1 {[%clk 0:02:05.2]}
15... h6 {[%clk 0:02:35.1]} 16. Bh4 {[%clk 0:02:01.9]} 16... Qa5 {[%clk
0:02:25.8]} 17. exd5 {[%clk 0:01:52.5]} 17... cxd5 {[%clk 0:02:26.2]} 18. Rxe5
{[%clk 0:01:15.8]} 18... Qxc3 {[%clk 0:02:01.4]} 19. Bh7+ {[%clk 0:01:08.6]}
19... Nxh7 {[%clk 0:02:02]} 20. Qxc3 {[%clk 0:01:09.1]} 20... Bxh4 {[%clk
0:02:03.6]} 21. Qc6 {[%clk 0:00:41.9]} 21... Bf6 {[%clk 0:02:00.8]} 22. Rxe6
{[%clk 0:00:42.9]} 22... Bxa1 {[%clk 0:01:57.8]} 23. Re7 {[%clk 0:00:43.9]}
23... Bf6 {[%clk 0:01:26.1]} 24. Rc7 {[%clk 0:00:39.2]} 24... Ng5 {[%clk
0:01:18.9]} 25. Qa6 {[%clk 0:00:36.4]} 25... Bd4 {[%clk 0:01:11.8]} 26. Kf1
{[%clk 0:00:33.4]} 26... Bb6 {[%clk 0:01:09.7]} 27. Rc6 {[%clk 0:00:29.8]} 27...
Ne4 {[%clk 0:01:10.4]} 28. f3 {[%clk 0:00:28.1]} 28... Ng3+ {[%clk 0:01:07.8]}
29. Ke1 {[%clk 0:00:28.7]} 29... Re8+ {[%clk 0:01:03.8]} 30. Kd1 {[%clk
0:00:29.1]} 30... Nf5 {[%clk 0:00:55.4]} 31. g4 {[%clk 0:00:21.8]} 31... Nd4
{[%clk 0:00:49.2]} 32. Rc3 {[%clk 0:00:12.6]} 32... Re6 {[%clk 0:00:47.1]} 33.
Rc8+ {[%clk 0:00:10]} 33... Rxc8 {[%clk 0:00:45.5]} 34. Qxc8+ {[%clk 0:00:11.3]}
34... Kh7 {[%clk 0:00:47.4]} 35. Qd7 {[%clk 0:00:12.3]} 35... Nxf3 {[%clk
0:00:45]} 36. c3 {[%clk 0:00:08.1]} 36... Re1+ {[%clk 0:00:42.7]} 37. Kc2 {[%clk
0:00:09.2]} 37... Re2+ {[%clk 0:00:43.8]} 38. Kb1 {[%clk 0:00:09.5]} 38... Re5
{[%clk 0:00:33.7]} 39. Qxf7 {[%clk 0:00:09.5]} 39... Ng5 {[%clk 0:00:32.9]} 40.
Qf4 {[%clk 0:00:09.8]} 40... Re1+ {[%clk 0:00:25.5]} 41. Kc2 {[%clk 0:00:09.8]}
41... Re2+ {[%clk 0:00:25.7]} 42. Kd1 {[%clk 0:00:10.2]} 42... Rf2 {[%clk
0:00:26]} 43. Qe5 {[%clk 0:00:09.5]} 43... Ne4 {[%clk 0:00:18.5]} 44. Ke1 {[%clk
0:00:09]} 44... Be3 {[%clk 0:00:15.1]} 45. Qxd5 {[%clk 0:00:07.3]} 45... Bd2+
{[%clk 0:00:16.5]} 46. Qxd2 {[%clk 0:00:08]} 46... Rxd2 {[%clk 0:00:18.2]} 47.
c4 {[%clk 0:00:09]} 47... Rxa2 {[%clk 0:00:19.7]} 0-1

[Event "*** Titled Tuesday 3|2 Blitz"]
[Site "Chess.com"]
[Date "2016.05.03"]
[Round "1"]
[White "Ksenia_Legenko"]
[Black "GMG"]
[Result "0-1"]
[WhiteElo "2071"]
[BlackElo "2436"]
[TimeControl "180+2"]
[EndTime "11:09:32 PDT"]
[Termination "GMG won by checkmate"]

1. d4 {[%clk 0:02:57.7]} 1... d5 {[%clk 0:03:00.7]} 2. c4 {[%clk 0:02:57.3]}
2... e6 {[%clk 0:03:02.2]} 3. Nf3 {[%clk 0:02:57.6]} 3... c6 {[%clk 0:03:02.9]}
4. g3 {[%clk 0:02:58.8]} 4... Bd6 {[%clk 0:03:02.8]} 5. Bg2 {[%clk 0:03:00.4]}
5... f5 {[%clk 0:03:04.4]} 6. O-O {[%clk 0:03:01.8]} 6... Nf6 {[%clk 0:03:05.9]}
7. Nbd2 {[%clk 0:02:59.6]} 7... Nbd7 {[%clk 0:03:04.4]} 8. Ne1 {[%clk
0:02:59.2]} 8... O-O {[%clk 0:03:04.2]} 9. Qc2 {[%clk 0:03:00.1]} 9... Qe7
{[%clk 0:02:59.5]} 10. Ndf3 {[%clk 0:03:00.5]} 10... Ne4 {[%clk 0:02:59.8]} 11.
Nd3 {[%clk 0:02:59.6]} 11... g5 {[%clk 0:02:57.6]} 12. Nfe5 {[%clk 0:02:59.9]}
12... Bxe5 {[%clk 0:02:49.6]} 13. Nxe5 {[%clk 0:02:57.6]} 13... Nxe5 {[%clk
0:02:50]} 14. dxe5 {[%clk 0:02:58.3]} 14... b6 {[%clk 0:02:35.4]} 15. b3 {[%clk
0:02:36.7]} 15... Bb7 {[%clk 0:02:31.3]} 16. a4 {[%clk 0:02:30.5]} 16... a5
{[%clk 0:02:31]} 17. Be3 {[%clk 0:02:28.2]} 17... Nc5 {[%clk 0:01:57.6]} 18.
Rac1 {[%clk 0:01:56.4]} 18... Rac8 {[%clk 0:01:53.9]} 19. Kh1 {[%clk 0:01:45.6]}
19... Nd7 {[%clk 0:01:52]} 20. cxd5 {[%clk 0:01:40.1]} 20... exd5 {[%clk
0:01:50.5]} 21. Rfd1 {[%clk 0:01:35.3]} 21... Nxe5 {[%clk 0:01:45.4]} 22. Bxb6
{[%clk 0:01:33.2]} 22... Rf6 {[%clk 0:01:27.7]} 23. Bd4 {[%clk 0:01:20.4]} 23...
f4 {[%clk 0:01:27.9]} 24. Qc5 {[%clk 0:00:54.5]} 24... Qe6 {[%clk 0:01:26.7]}
25. Bxe5 {[%clk 0:00:47.1]} 25... Qxe5 {[%clk 0:01:26.6]} 26. Bf3 {[%clk
0:00:42.6]} 26... Rcf8 {[%clk 0:01:12.6]} 27. Qb6 {[%clk 0:00:39.9]} 27... fxg3
{[%clk 0:01:08.2]} 28. fxg3 {[%clk 0:00:36]} 28... Ba8 {[%clk 0:01:00.7]} 29.
Qd4 {[%clk 0:00:32.6]} 29... Qb8 {[%clk 0:00:57.8]} 30. Qg4 {[%clk 0:00:32.1]}
30... h6 {[%clk 0:00:57.5]} 31. Rc3 {[%clk 0:00:29.2]} 31... Qe5 {[%clk
0:00:57.3]} 32. Qd4 {[%clk 0:00:28.6]} 32... Qe7 {[%clk 0:00:57]} 33. Re3 {[%clk
0:00:28]} 33... Qf7 {[%clk 0:00:55.9]} 34. b4 {[%clk 0:00:22.6]} 34... axb4
{[%clk 0:00:55.9]} 35. Qxb4 {[%clk 0:00:23.4]} 35... h5 {[%clk 0:00:55.7]} 36.
h3 {[%clk 0:00:17.7]} 36... Rg6 {[%clk 0:00:44.3]} 37. Re7 {[%clk 0:00:17.1]}
37... Qf6 {[%clk 0:00:40.9]} 38. Qd4 {[%clk 0:00:16.2]} 38... Qxe7 {[%clk
0:00:39.4]} 39. Bxh5 {[%clk 0:00:17.3]} 39... c5 {[%clk 0:00:37.5]} 40. Qd2
{[%clk 0:00:14.5]} 40... d4+ {[%clk 0:00:38.4]} 41. Kg1 {[%clk 0:00:12.7]} 41...
Rh6 {[%clk 0:00:37.3]} 42. Bg4 {[%clk 0:00:12.6]} 42... Qe4 {[%clk 0:00:36.7]}
43. Bf3 {[%clk 0:00:12.8]} 43... Qe5 {[%clk 0:00:36.6]} 44. Kg2 {[%clk 0:00:12]}
44... Rhf6 {[%clk 0:00:33.7]} 45. Bxa8 {[%clk 0:00:11.5]} 45... Rf2+ {[%clk
0:00:31.5]} 46. Kg1 {[%clk 0:00:12.3]} 46... Qxg3+ {[%clk 0:00:32]} 47. Kh1
{[%clk 0:00:13.9]} 47... Qh2# {[%clk 0:00:33]} 0-1

[Event "*** Titled Tuesday 3|2 Blitz"]
[Site "Chess.com"]
[Date "2016.05.03"]
[Round "1"]
[White "igorkovalenko"]
[Black "jsdbv"]
[Result "0-1"]
[WhiteElo "2573"]
[BlackElo "2308"]
[TimeControl "180+2"]
[EndTime "11:09:54 PDT"]
[Termination "jsdbv won by checkmate"]

1. d4 {[%clk 0:03:01.9]} 1... Nf6 {[%clk 0:02:59.4]} 2. c3 {[%clk 0:03:02.9]}
2... d5 {[%clk 0:02:53.6]} 3. Bf4 {[%clk 0:03:03.5]} 3... c6 {[%clk 0:02:51.8]}
4. Nd2 {[%clk 0:03:03.2]} 4... Bf5 {[%clk 0:02:49.6]} 5. e3 {[%clk 0:03:02.9]}
5... e6 {[%clk 0:02:47.7]} 6. Qb3 {[%clk 0:02:56.3]} 6... Qb6 {[%clk 0:02:45]}
7. Ngf3 {[%clk 0:02:57.4]} 7... h6 {[%clk 0:02:41.6]} 8. h3 {[%clk 0:02:57.8]}
8... Nbd7 {[%clk 0:02:39.2]} 9. Be2 {[%clk 0:02:59.3]} 9... Be7 {[%clk
0:02:35.9]} 10. O-O {[%clk 0:02:55.8]} 10... O-O {[%clk 0:02:36]} 11. a4 {[%clk
0:02:55.2]} 11... Qxb3 {[%clk 0:02:32.4]} 12. Nxb3 {[%clk 0:02:57.1]} 12... a5
{[%clk 0:02:31.7]} 13. Nfd2 {[%clk 0:02:52.4]} 13... Rfc8 {[%clk 0:02:27.1]} 14.
g4 {[%clk 0:02:51.9]} 14... Bg6 {[%clk 0:02:26.2]} 15. f3 {[%clk 0:02:53.4]}
15... b6 {[%clk 0:02:19.3]} 16. Rfc1 {[%clk 0:02:45.4]} 16... c5 {[%clk
0:02:16.4]} 17. Nf1 {[%clk 0:02:44.4]} 17... c4 {[%clk 0:02:12.9]} 18. Nbd2
{[%clk 0:02:45.6]} 18... h5 {[%clk 0:02:11.3]} 19. Kf2 {[%clk 0:02:28.8]} 19...
hxg4 {[%clk 0:02:06.5]} 20. hxg4 {[%clk 0:02:29.8]} 20... Ra7 {[%clk 0:02:01.2]}
21. Ng3 {[%clk 0:02:31.2]} 21... Ne8 {[%clk 0:01:49.6]} 22. e4 {[%clk
0:02:28.4]} 22... Nd6 {[%clk 0:01:48.1]} 23. e5 {[%clk 0:02:21.5]} 23... Ne8
{[%clk 0:01:45.8]} 24. Rh1 {[%clk 0:02:22.6]} 24... f6 {[%clk 0:01:38]} 25. exf6
{[%clk 0:02:02.9]} 25... Ndxf6 {[%clk 0:01:37.1]} 26. Be5 {[%clk 0:01:49.6]}
26... Nd7 {[%clk 0:01:32.1]} 27. f4 {[%clk 0:01:49.2]} 27... Nxe5 {[%clk
0:01:27.5]} 28. fxe5 {[%clk 0:01:51.1]} 28... Bg5 {[%clk 0:01:22.7]} 29. Nf3
{[%clk 0:01:51.2]} 29... Be7 {[%clk 0:01:17.9]} 30. Nh5 {[%clk 0:01:37.7]} 30...
Be4 {[%clk 0:01:12.5]} 31. Nf4 {[%clk 0:01:25]} 31... Nc7 {[%clk 0:01:05.7]} 32.
Kg3 {[%clk 0:01:23.6]} 32... b5 {[%clk 0:01:01.6]} 33. axb5 {[%clk 0:01:16.4]}
33... Rb8 {[%clk 0:01:02.5]} 34. Ra2 {[%clk 0:01:04.5]} 34... Rxb5 {[%clk
0:00:57.8]} 35. Rha1 {[%clk 0:01:06]} 35... Rab7 {[%clk 0:00:53.2]} 36. Bd1
{[%clk 0:01:05.7]} 36... Rxb2 {[%clk 0:00:51.2]} 37. Rxb2 {[%clk 0:01:05.8]}
37... Rxb2 {[%clk 0:00:51.3]} 38. Rxa5 {[%clk 0:01:07.3]} 38... Rb1 {[%clk
0:00:45.8]} 39. Be2 {[%clk 0:00:54.4]} 39... Rb3 {[%clk 0:00:42.4]} 40. Ra7
{[%clk 0:00:55.2]} 40... Bd8 {[%clk 0:00:39.2]} 41. Bd1 {[%clk 0:00:38]} 41...
Rxc3 {[%clk 0:00:37.6]} 42. Rb7 {[%clk 0:00:39.4]} 42... Kf7 {[%clk 0:00:28.6]}
43. g5 {[%clk 0:00:36.8]} 43... Ra3 {[%clk 0:00:24.2]} 44. g6+ {[%clk
0:00:21.2]} 44... Ke8 {[%clk 0:00:23.6]} 45. Rb8 {[%clk 0:00:21.9]} 45... c3
{[%clk 0:00:20]} 46. Kg4 {[%clk 0:00:22.3]} 46... c2 {[%clk 0:00:20.5]} 47. Bxc2
{[%clk 0:00:23.6]} 47... Bxc2 {[%clk 0:00:21.9]} 48. Ng5 {[%clk 0:00:20.4]}
48... Bf5+ {[%clk 0:00:22]} 49. Kh5 {[%clk 0:00:22]} 49... Rg3 {[%clk
0:00:13.8]} 50. Nf7 {[%clk 0:00:21.5]} 50... Bg4# {[%clk 0:00:10.4]} 0-1

[Event "*** Titled Tuesday 3|2 Blitz"]
[Site "Chess.com"]
[Date "2016.05.03"]
[Round "1"]
[White "arna"]
[Black "jk13"]
[Result "1-0"]
[WhiteElo "2117"]
[BlackElo "2408"]
[TimeControl "180+2"]
[EndTime "11:10:15 PDT"]
[Termination "arna won by resignation"]

1. e4 {[%clk 0:02:55.6]} 1... e5 {[%clk 0:02:54.9]} 2. Nf3 {[%clk 0:02:53.8]}
2... Nc6 {[%clk 0:02:56.3]} 3. Nc3 {[%clk 0:02:54.8]} 3... Nf6 {[%clk
0:02:54.8]} 4. Be2 {[%clk 0:02:56.1]} 4... Bd6 {[%clk 0:02:55.2]} 5. O-O {[%clk
0:02:52.8]} 5... O-O {[%clk 0:02:56.7]} 6. d4 {[%clk 0:02:47.9]} 6... exd4
{[%clk 0:02:44.1]} 7. Nxd4 {[%clk 0:02:49.8]} 7... Re8 {[%clk 0:02:45.5]} 8. Bf3
{[%clk 0:02:02.1]} 8... Nxd4 {[%clk 0:02:45.1]} 9. Qxd4 {[%clk 0:02:02.2]} 9...
Be5 {[%clk 0:02:47]} 10. Qd3 {[%clk 0:02:01]} 10... d6 {[%clk 0:02:45.9]} 11.
Bg5 {[%clk 0:01:54.7]} 11... h6 {[%clk 0:02:45.8]} 12. Bh4 {[%clk 0:01:55.4]}
12... Be6 {[%clk 0:02:42.9]} 13. Bg3 {[%clk 0:01:56.4]} 13... Bxg3 {[%clk
0:02:41.8]} 14. hxg3 {[%clk 0:01:57.1]} 14... Nd7 {[%clk 0:02:43.7]} 15. Rad1
{[%clk 0:01:53.1]} 15... Ne5 {[%clk 0:02:43.5]} 16. Qd4 {[%clk 0:01:53.6]} 16...
a6 {[%clk 0:02:36.8]} 17. Nd5 {[%clk 0:01:50.8]} 17... Bxd5 {[%clk 0:02:34.8]}
18. Qxd5 {[%clk 0:01:31.1]} 18... Rb8 {[%clk 0:02:33]} 19. Be2 {[%clk 0:01:29]}
19... Nd7 {[%clk 0:02:30]} 20. f3 {[%clk 0:01:00.3]} 20... Qf6 {[%clk
0:02:28.6]} 21. c3 {[%clk 0:00:57.7]} 21... Re5 {[%clk 0:02:26.4]} 22. Qd4
{[%clk 0:00:53.9]} 22... Qg6 {[%clk 0:02:26.5]} 23. g4 {[%clk 0:00:39.8]} 23...
Nc5 {[%clk 0:02:27.5]} 24. Bc4 {[%clk 0:00:32.1]} 24... Rbe8 {[%clk 0:02:27.3]}
25. Rd2 {[%clk 0:00:31.3]} 25... R5e7 {[%clk 0:02:23.8]} 26. b4 {[%clk 0:00:31]}
26... Ne6 {[%clk 0:02:24.5]} 27. Bxe6 {[%clk 0:00:32]} 27... Rxe6 {[%clk
0:02:25.5]} 28. Rfd1 {[%clk 0:00:31.8]} 28... Re5 {[%clk 0:02:26.2]} 29. a3
{[%clk 0:00:31.6]} 29... h5 {[%clk 0:02:23]} 30. gxh5 {[%clk 0:00:30.3]} 30...
Rxh5 {[%clk 0:02:24.7]} 31. Kf2 {[%clk 0:00:26.3]} 31... Qh6 {[%clk 0:02:23.7]}
32. Qe3 {[%clk 0:00:21.4]} 32... Qf6 {[%clk 0:02:23.4]} 33. Qd4 {[%clk
0:00:21.5]} 33... Qh4+ {[%clk 0:02:23.5]} 34. Ke3 {[%clk 0:00:20]} 34... Qg5+
{[%clk 0:02:18.5]} 35. Kd3 {[%clk 0:00:21]} 35... Rh2 {[%clk 0:02:18.1]} 36. Rg1
{[%clk 0:00:13.6]} 36... Re5 {[%clk 0:02:08.8]} 37. Kc2 {[%clk 0:00:14.3]} 37...
f5 {[%clk 0:02:09.6]} 38. exf5 {[%clk 0:00:09.1]} 38... Qxf5+ {[%clk 0:02:11.5]}
39. Kb2 {[%clk 0:00:10.2]} 39... Qf6 {[%clk 0:02:06.5]} 40. Qc4+ {[%clk
0:00:06.8]} 40... Qf7 {[%clk 0:02:07.3]} 41. Qd3 {[%clk 0:00:07.6]} 41... Qe6
{[%clk 0:02:00.1]} 42. Rgd1 {[%clk 0:00:06.3]} 42... Re3 {[%clk 0:01:56.9]} 43.
Qc2 {[%clk 0:00:07.4]} 43... b5 {[%clk 0:01:50.8]} 44. Rf1 {[%clk 0:00:08]}
44... d5 {[%clk 0:01:44.3]} 45. f4 {[%clk 0:00:08.9]} 45... c6 {[%clk
0:01:41.6]} 46. f5 {[%clk 0:00:10]} 46... Qe5 {[%clk 0:01:41.7]} 47. f6 {[%clk
0:00:10.5]} 47... Re4 {[%clk 0:01:24.4]} 48. Rdf2 {[%clk 0:00:09.7]} 48... gxf6
{[%clk 0:01:16.5]} 49. Qd1 {[%clk 0:00:09.6]} 49... Qg5 {[%clk 0:01:11.1]} 50.
Qf3 {[%clk 0:00:07.7]} 50... Rg4 {[%clk 0:01:09.8]} 51. Qxf6 {[%clk 0:00:06.5]}
51... Qxf6 {[%clk 0:01:09.1]} 52. Rxf6 {[%clk 0:00:08.4]} 52... Rgxg2+ {[%clk
0:01:07.9]} 53. Kb1 {[%clk 0:00:06.8]} 53... Rb2+ {[%clk 0:01:08.1]} 54. Kc1
{[%clk 0:00:07.9]} 54... Rhc2+ {[%clk 0:01:08]} 55. Kd1 {[%clk 0:00:08.8]} 55...
Kg7 {[%clk 0:00:57]} 56. Rf7+ {[%clk 0:00:08.8]} 56... Kg6 {[%clk 0:00:58.4]}
57. R7f6+ {[%clk 0:00:09.2]} 57... Kg5 {[%clk 0:00:59.6]} 58. Rf8 {[%clk
0:00:10.4]} 58... Rd2+ {[%clk 0:00:56.2]} 59. Kc1 {[%clk 0:00:11.7]} 59... Rbc2+
{[%clk 0:00:57.5]} 60. Kb1 {[%clk 0:00:13]} 60... Rb2+ {[%clk 0:00:58.4]} 61.
Kc1 {[%clk 0:00:14.2]} 61... Rdc2+ {[%clk 0:00:59.1]} 62. Kd1 {[%clk 0:00:15.5]}
62... Rh2 {[%clk 0:00:56]} 63. Rg1+ {[%clk 0:00:09.6]} 63... Rbg2 {[%clk
0:00:53.2]} 64. Rxg2+ {[%clk 0:00:08.7]} 64... Rxg2 {[%clk 0:00:53]} 65. Rg8+
{[%clk 0:00:10]} 65... Kf4 {[%clk 0:00:54.9]} 66. Rxg2 {[%clk 0:00:11.3]} 66...
Ke3 {[%clk 0:00:56.8]} 67. Kc2 {[%clk 0:00:12.1]} 67... Ke4 {[%clk 0:00:58]} 68.
Rg6 {[%clk 0:00:13.1]} 68... d4 {[%clk 0:00:59.9]} 69. Rxc6 {[%clk 0:00:13.4]}
1-0